Workbook

Sheet Valuation
D3: Multiplier | E3: Valuation
B4: 2022 Revenue | C4: 388573.56 | D4: 3.5 | E4: =SUM(C4*D4) -> 1360007.46
B5: 2022 Profit | C5: ='Balance Sheet'!O72 -> 199808.2256 | D5: 10 | E5: =SUM(C5*D5) -> 1998082.256 | F5: =AVERAGE(E4,E5) -> 1679044.858 | H5: 51 | I5: Rooms | J5: 26000 | K5: =SUM(H5*J5) -> 1326000
H6: Restaurant Space | K6: 100000
B7: 2023 Revenue | C7: ='Balance Sheet'!O86 -> 382648.86 | D7: 3.5 | E7: =SUM(C7*D7) -> 1339271.01 | H7: Restaurant Equitment | K7: 110000
B8: 2023 Profit | C8: ='Balance Sheet'!O113 -> 169197.0118 | D8: 10 | E8: 1691970.118 | F8: =AVERAGE(E7,E8) -> 1515620.564 | H8: 5 Bedroom House | K8: 250000
H9: Pool | K9: 40000
B10: 2024 Revenue | C10: 414550.87 | D10: 3.5 | E10: =SUM(C10*D10) -> 1450928.045 | H10: Insolated Roof with solar panels | K10: 200000
B11: 2024 Profit | C11: 191695.0371 | D11: 10 | E11: 1916950.371 | F11: =AVERAGE(E10,E11) -> 1683939.208 | H11: Hotel Land 3.9 ackers
H12: Additional 4.1 ackers' | K12: 800000
F13: =SUM(F5:F11)/3 -> 1626201.543
B14: Restaurant Space | E14: 100000
B15: Restaurant Equitment | E15: 110000 | K15: =SUM(K5:K13) -> 2826000
B16: Hotel Land 3.9 ackers
B17: Additional 4.1 ackers ack | E17: 800000
B18: 5 Bedroom House | E18: 250000
F19: =SUM(F13+E14+E15+E18+E17) -> 2886201.543

Sheet Balance Sheet
C1: 6 | D1: 6 | E1: 6 | F1: 3.1 | G1: 2.6 | H1: 2.6 | I1: 4.5 | J1: 4 | K1: 3.85 | L1: 3.1 | M1: 3.1 | N1: 5 | O1: 4.154166667
C2: 31 | D2: 28 | E2: 31 | F2: 30 | G2: 31 | H2: 30 | I2: 31 | J2: 31 | K2: 30 | L2: 31 | M2: 30 | N2: 31
B3: 2021 | C3: January | D3: February | E3: March | F3: April | G3: May | H3: June | I3: July | J3: August | K3: September | L3: October | M3: November | N3: December
B4: Av Daily | C4: 20.53523705 | D4: 21.72526636 | E4: 21.6594854 | F4: 21.38385559 | G4: 21.56628914 | H4: 22.50478142 | I4: 22.49225888 | J4: 22.60941476 | K4: 21.57118115 | L4: 21.62323625 | M4: 22.28058824 | N4: 21.78793868 | O4: 21.81162774
B5: Occupancy | C5: 0.884516129 | D5: 0.9385714286 | E5: 0.9277419355 | F5: 0.9786666667 | G5: 0.9683870968 | H5: 0.976 | I5: 0.9776674938 | J5: 0.9751861042 | K5: 0.966025641 | L5: 0.9584367246 | M5: 0.9698717949 | N5: 0.9509925558 | O5: 0.9560052976
B6: Rooms Sold | C6: 1371 | D6: 1314 | E6: 1438 | F6: 1468 | G6: 1501 | H6: 1464 | I6: 1576 | J6: 1572 | K6: 1507 | L6: 1545 | M6: 1513 | N6: 1533 | O6: 17802
B7: Revenue | C7: 28153.81 | D7: 28547 | E7: 31146.34 | F7: 31391.5 | G7: 32371 | H7: 32947 | I7: 35447.8 | J7: 35542 | K7: 32507.77 | L7: 33407.9 | M7: 33710.53 | N7: 33400.91 | O7: 388573.56
B8: Sales Tax | C8: 2384.627707 | D8: 2417.9309 | E8: 2638.094998 | F8: 2658.86005 | G8: 2741.8237 | H8: 2790.6109 | I8: 3002.42866 | J8: 3010.4074 | K8: 2753.408119 | L8: 2829.64913 | M8: 2855.281891 | N8: 2829.057077 | O8: 32912.18053
A9: 60000 | B9: Total Collected | C9: 31909.43771 | D9: 32278.9309 | E9: 35222.435 | F9: 35518.36005 | G9: 36613.8237 | H9: 37201.6109 | I9: 40026.22866 | J9: 40124.4074 | K9: 36768.17812 | L9: 37782.54913 | M9: 38078.81189 | N9: 37762.96708 | O9: 439287.7405
A10: 30000 | B10: Ast Manager | C10: 3120 | D10: 3120 | E10: 3120 | F10: 3120 | G10: 3120 | H10: 3120 | I10: 3120 | J10: 3120 | K10: 3120 | L10: 3120 | M10: 3120 | N10: 3120 | O10: 37440
A11: 28000 | B11: House Keeping | C11: 500 | D11: 500 | E11: 500 | F11: 500 | G11: 500 | H11: 500 | I11: 500 | J11: 500 | K11: 500 | L11: 500 | M11: 500 | N11: 500 | O11: 6000
A12: 26000 | B12: Grounds | C12: 1646.666667 | D12: 1646.666667 | E12: 1646.666667 | F12: 1646.666667 | G12: 1646.666667 | H12: 1646.666667 | I12: 1646.666667 | J12: 1646.666667 | K12: 1646.666667 | L12: 1646.666667 | M12: 1646.666667 | N12: 1646.666667 | O12: 19760
A13: 24000 | B13: Payroll | C13: 5266.666667 | D13: 5266.666667 | E13: 5266.666667 | F13: 5266.666667 | G13: 5266.666667 | H13: 5266.666667 | I13: 5266.666667 | J13: 5266.666667 | K13: 5266.666667 | L13: 5266.666667 | M13: 5266.666667 | N13: 5266.666667 | O13: 63200
A14: 24000 | B14: Insurance Escro | C14: 1400 | D14: 1400 | E14: 1400 | F14: 3400 | G14: 1750 | H14: 1750 | I14: 1750 | J14: 1750 | K14: 1750 | L14: 1750 | M14: 1750 | N14: 1750 | O14: 21600
B15: Property Tax | G15: 6836 | N15: 5600 | O15: 12436
B16: Utilities | C16: 15270 | D16: 1719 | E16: 8661 | F16: 5598 | G16: 5451 | H16: 5870 | I16: 8345 | J16: 8063 | K16: 7875 | L16: 6482 | M16: 5550 | N16: 5889 | O16: 84773
B17: Electric | C17: 13190 | D17: 8226 | E17: 7573.7 | F17: 3818 | G17: 3371 | H17: 3790 | I17: 6265 | J17: 5983 | K17: 5795 | L17: 4402 | M17: 3470 | N17: 3809 | O17: 69692.7
B18: Water | C18: 1600 | D18: 1600 | E18: 1300 | F18: 1300 | G18: 1600 | H18: 1600 | I18: 1600 | J18: 1600 | K18: 1600 | L18: 1600 | M18: 1600 | N18: 1600 | O18: 18600
B19: Garbage | C19: 400 | D19: 400 | E19: 400 | F19: 400 | G19: 400 | H19: 400 | I19: 400 | J19: 400 | K19: 400 | L19: 400 | M19: 400 | N19: 400 | O19: 4800
B20: Bug Zero | C20: 80 | D20: 80 | E20: 80 | F20: 80 | G20: 80 | H20: 80 | I20: 80 | J20: 80 | K20: 80 | L20: 80 | M20: 80 | N20: 80 | O20: 960
B21: Communication | C21: 1129 | D21: 1129 | E21: 1129 | F21: 1129 | G21: 1129 | H21: 1129 | I21: 1129 | J21: 1129 | K21: 1129 | L21: 1129 | M21: 1129 | N21: 1129 | O21: 13548
B22: Internet | C22: 400 | D22: 400 | E22: 400 | F22: 400 | G22: 400 | H22: 400 | I22: 400 | J22: 400 | K22: 400 | L22: 400 | M22: 400 | N22: 400 | O22: 4800
B23: Cells | C23: 450 | D23: 450 | E23: 450 | F23: 450 | G23: 450 | H23: 450 | I23: 450 | J23: 450 | K23: 450 | L23: 450 | M23: 450 | N23: 450 | O23: 5400
B24: TV | C24: 180 | D24: 180 | E24: 180 | F24: 180 | G24: 180 | H24: 180 | I24: 180 | J24: 180 | K24: 180 | L24: 180 | M24: 180 | N24: 180 | O24: 2160
B25: POS | C25: 99 | D25: 99 | E25: 99 | F25: 99 | G25: 99 | H25: 99 | I25: 99 | J25: 99 | K25: 99 | L25: 99 | M25: 99 | N25: 99 | O25: 1188
B26: Supplies | C26: 500 | D26: 500 | E26: 500 | F26: 500 | G26: 500 | H26: 500 | I26: 500 | J26: 500 | K26: 500 | L26: 500 | M26: 500 | N26: 500 | O26: 6000
B27: CC | C27: 478.61477 | D27: 485.299 | E27: 529.48778 | F27: 533.6555 | G27: 550.307 | H27: 560.099 | I27: 602.6126 | J27: 604.214 | K27: 552.63209 | L27: 567.9343 | M27: 573.07901 | N27: 567.81547 | O27: 6605.75052
B28: MISC | O28: 0
B29: Advertising | O29: 0
B31: Expense | C31: 24044.28144 | D31: 10499.96567 | E31: 17486.15445 | F31: 16427.32217 | G31: 21482.97367 | H31: 15075.76567 | I31: 17593.27927 | J31: 17312.88067 | K31: 17073.29876 | L31: 15695.60097 | M31: 14768.74568 | N31: 20702.48214 | O31: 208162.7505
B32: Revenue | C32: 31909.43771 | D32: 32278.9309 | E32: 35222.435 | F32: 35518.36005 | G32: 36613.8237 | H32: 37201.6109 | I32: 40026.22866 | J32: 40124.4074 | K32: 36768.17812 | L32: 37782.54913 | M32: 38078.81189 | N32: 37762.96708 | O32: 439287.7405
B33: Profit | C33: 7865.15627 | D33: 21778.96523 | E33: 17736.28055 | F33: 19091.03788 | G33: 15130.85003 | H33: 22125.84523 | I33: 22432.94939 | J33: 22811.52673 | K33: 19694.87936 | L33: 22086.94816 | M33: 23310.06621 | N33: 17060.48494 | O33: 231124.99
B34: Owner Draw | C34: 3466.666667 | D34: 3466.666667 | E34: 3466.666667 | F34: 3466.666667 | G34: 3466.666667 | H34: 3466.666667 | I34: 3466.666667 | J34: 3466.666667 | K34: 3466.666667 | L34: 3466.666667 | M34: 3466.666667 | N34: 3466.666667 | O34: 41600
A35: 26000 | B35: Contractor | C35: 2426.666667 | D35: 2426.666667 | E35: 2426.666667 | F35: 1700 | G35: 0 | H35: 0 | I35: 0 | J35: 0 | K35: 0 | L35: 0 | M35: 0 | N35: 0 | O35: 8980
B36: Loan | C36: 1400 | D36: 1400 | E36: 1400 | F36: 1400 | G36: 1400 | H36: 1400 | I36: 2990 | J36: 2990 | K36: 2990 | L36: 2990 | M36: 2990 | N36: 2990 | O36: 26340
C37: 571.822937 | D37: 14485.6319 | E37: 10442.94722 | F37: 12524.37122 | G37: 10264.18337 | H37: 17259.17857 | I37: 15976.28273 | J37: 16354.86007 | K37: 13238.2127 | L37: 15630.2815 | M37: 16853.39955 | N37: 10603.81827 | O37: 154204.99
B38: Owner | C38: 6000 | D38: 6000 | E38: 6000 | F38: 6000 | G38: 6000 | H38: 6000 | I38: 6000 | J38: 6000 | K38: 6000 | L38: 6000 | M38: 6000 | N38: 6000 | O38: 72000
C39: 6571.822937 | D39: 27057.45484 | E39: 43500.40205 | F39: 62024.77327 | G39: 78288.95664 | H39: 101548.1352 | I39: 123524.4179 | J39: 145879.278 | K39: 165117.4907 | L39: 186747.7722 | M39: 209601.1717 | N39: 226204.99
C40: 3.7 | D40: 4.2 | E40: 3.6 | F40: 2 | G40: 0.8 | H40: 0.8 | I40: 2.7 | J40: 2.7 | K40: 2.05 | L40: 3 | M40: 3.2 | N40: 4.4 | O40: 2.7625
C41: 31 | D41: 28 | E41: 31 | F41: 30 | G41: 31 | H41: 30 | I41: 31 | J41: 31 | K41: 30 | L41: 31 | M41: 30 | N41: 31
B42: 2022 | C42: January | D42: February | E42: March | F42: April | G42: May | H42: June | I42: July | J42: August | K42: September | L42: October | M42: November | N42: December
B43: Av Daily | C43: 22.12439414 | D43: 22.61241766 | E43: 22.59702738 | F43: 22.40222739 | G43: 22.01275601 | H43: 21.57429849 | I43: 24.291054 | J43: 22.87452444 | K43: 23.58149117 | L43: 24.14666428 | M43: 24.62808931 | N43: 24.51341028 | O43: 23.11319621
B44: Occupancy | C44: 0.9317617866 | D44: 0.9175824176 | E44: 0.9516129032 | F44: 0.9641025641 | G44: 0.9813895782 | H44: 0.9320512821 | I44: 0.9534739454 | J44: 0.9392059553 | K44: 0.9070512821 | L44: 0.864764268 | M44: 0.8756410256 | N44: 0.8331265509 | O44: 0.9209802966
B45: Rooms Sold | C45: 1502 | D45: 1336 | E45: 1534 | F45: 1504 | G45: 1582 | H45: 1454 | I45: 1537 | J45: 1514 | K45: 1415 | L45: 1394 | M45: 1366 | N45: 1343 | O45: 17481
B46: Revenue | C46: 33230.84 | D46: 30210.19 | E46: 34663.84 | F46: 33692.95 | G46: 34824.18 | H46: 31369.03 | I46: 37335.35 | J46: 34632.03 | K46: 33367.81 | L46: 33660.45 | M46: 33641.97 | N46: 32921.51 | O46: 403550.15
B47: Sales Tax | C47: 2814.652148 | D47: 2558.803093 | E47: 2936.027248 | F47: 2853.792865 | G47: 2949.608046 | H47: 2656.956841 | I47: 3162.304145 | J47: 2933.332941 | K47: 2826.253507 | L47: 2851.040115 | M47: 2849.474859 | N47: 2788.451897 | O47: 34180.6977
B48: Total Collected | C48: 36045.49215 | D48: 32768.99309 | E48: 37599.86725 | F48: 36546.74287 | G48: 37773.78805 | H48: 34025.98684 | I48: 40497.65415 | J48: 37565.36294 | K48: 36194.06351 | L48: 36511.49011 | M48: 36491.44486 | N48: 35709.9619 | O48: 437730.8477
B49: Ast Manager | C49: 3120 | D49: 3120 | E49: 3120 | F49: 3120 | G49: 3120 | H49: 3120 | I49: 3293.333333 | J49: 3293.333333 | K49: 3293.333333 | L49: 3293.333333 | M49: 3293.333333 | N49: 3293.333333 | O49: 38480
B50: House Keeping | C50: 500 | D50: 500 | E50: 500 | F50: 500 | G50: 500 | H50: 500 | I50: 500 | J50: 500 | K50: 500 | L50: 500 | M50: 500 | N50: 500 | O50: 6000
B51: Grounds | C51: 1646.666667 | D51: 1646.666667 | E51: 1646.666667 | F51: 1646.666667 | G51: 1646.666667 | H51: 1646.666667 | I51: 1646.666667 | J51: 1646.666667 | K51: 1646.666667 | L51: 1646.666667 | M51: 1646.666667 | N51: 1646.666667 | O51: 19760
B52: Payroll | C52: 5266.666667 | D52: 5266.666667 | E52: 5266.666667 | F52: 5266.666667 | G52: 5266.666667 | H52: 5266.666667 | I52: 5440 | J52: 5440 | K52: 5440 | L52: 5440 | M52: 5440 | N52: 5440 | O52: 64240
B53: Insurance Escro | C53: 1750 | D53: 1750 | E53: 1750 | F53: 0 | G53: 980 | H53: 980 | I53: 980 | J53: 980 | K53: 980 | L53: 980 | M53: 980 | N53: 980 | O53: 13090
B54: Property Tax | N54: 5700 | O54: 5700
B55: Utilities | C55: 7772.1 | D55: 8408.4 | E55: 6609.6 | F55: 4868 | G55: 3503.2 | H55: 3565.6 | I55: 6225.8 | J55: 6449.9 | K55: 5403.7 | L55: 7045 | M55: 6560.8 | N55: 8110.4 | O55: 74522.5
B56: Electric | C56: 5672.1 | D56: 6308.4 | E56: 4809.6 | F56: 3068 | G56: 1203.2 | H56: 1265.6 | I56: 3925.8 | J56: 4149.9 | K56: 3103.7 | L56: 4245 | M56: 4460.8 | N56: 6010.4 | O56: 48222.5
B57: Water | C57: 1600 | D57: 1600 | E57: 1300 | F57: 1300 | G57: 1800 | H57: 1800 | I57: 1800 | J57: 1800 | K57: 1800 | L57: 2300 | M57: 1600 | N57: 1600 | O57: 20300
B58: Garbage | C58: 400 | D58: 400 | E58: 400 | F58: 400 | G58: 400 | H58: 400 | I58: 400 | J58: 400 | K58: 400 | L58: 400 | M58: 400 | N58: 400 | O58: 4800
B59: Bug Zero | C59: 100 | D59: 100 | E59: 100 | F59: 100 | G59: 100 | H59: 100 | I59: 100 | J59: 100 | K59: 100 | L59: 100 | M59: 100 | N59: 100 | O59: 1200
B60: Communication | C60: 1079 | D60: 1079 | E60: 1079 | F60: 1079 | G60: 1079 | H60: 1079 | I60: 1529 | J60: 1529 | K60: 1529 | L60: 1529 | M60: 1529 | N60: 1529 | O60: 15648
B61: Internet | C61: 350 | D61: 350 | E61: 350 | F61: 350 | G61: 350 | H61: 350 | I61: 800 | J61: 800 | K61: 800 | L61: 800 | M61: 800 | N61: 800 | O61: 6900
B62: Cells | C62: 450 | D62: 450 | E62: 450 | F62: 450 | G62: 450 | H62: 450 | I62: 450 | J62: 450 | K62: 450 | L62: 450 | M62: 450 | N62: 450 | O62: 5400
B63: TV | C63: 180 | D63: 180 | E63: 180 | F63: 180 | G63: 180 | H63: 180 | I63: 180 | J63: 180 | K63: 180 | L63: 180 | M63: 180 | N63: 180 | O63: 2160 | CK63: CLKNB.,M
B64: POS | C64: 99 | D64: 99 | E64: 99 | F64: 99 | G64: 99 | H64: 99 | I64: 99 | J64: 99 | K64: 99 | L64: 99 | M64: 99 | N64: 99 | O64: 1188
B65: Supplies | C65: 500 | D65: 500 | E65: 500 | F65: 500 | G65: 500 | H65: 500 | I65: 500 | J65: 500 | K65: 500 | L65: 500 | M65: 500 | N65: 500 | O65: 6000
B66: CC | C66: 612.7733665 | D66: 557.0728826 | E66: 639.1977432 | F66: 621.2946287 | G66: 642.1543968 | H66: 578.4417763 | I66: 688.4601205 | J66: 638.61117 | K66: 615.2990796 | L66: 620.695332 | M66: 620.3545626 | N66: 607.0693522 | O66: 7441.424411
B67: MISC | C67: 750 | D67: 750 | H67: 3000 | I67: 3400 | J67: 8500 | N67: 700 | O67: 17100
B68: Advertising | O68: 0
B70: Expense | C70: 17730.54003 | D70: 18311.13955 | E70: 15844.46441 | F70: 12334.9613 | G70: 11971.02106 | H70: 14969.70844 | I70: 18763.26012 | J70: 24037.51117 | K70: 14467.99908 | L70: 16114.69533 | M70: 15630.15456 | N70: 23566.46935 | O70: 203741.9244
B71: Revenue | C71: 33230.84 | D71: 30210.19 | E71: 34663.84 | F71: 33692.95 | G71: 34824.18 | H71: 31369.03 | I71: 37335.35 | J71: 34632.03 | K71: 33367.81 | L71: 33660.45 | M71: 33641.97 | N71: 32921.51 | O71: 403550.15
B72: Profit | C72: 15500.29997 | D72: 11899.05045 | E72: 18819.37559 | F72: 21357.9887 | G72: 22853.15894 | H72: 16399.32156 | I72: 18572.08988 | J72: 10594.51883 | K72: 18899.81092 | L72: 17545.75467 | M72: 18011.81544 | N72: 9355.040648 | O72: 199808.2256
B73: Owner Draw | C73: 3466.666667 | D73: 3466.666667 | E73: 3466.666667 | F73: 3466.666667 | G73: 3466.666667 | H73: 3466.666667 | I73: 3466.666667 | J73: 3466.666667 | K73: 3466.666667 | L73: 3466.666667 | M73: 3466.666667 | N73: 3466.666667 | O73: 41600
B74: Contractor | C74: 0 | D74: 0 | E74: 8000 | F74: 8000 | G74: 8000 | H74: 0 | I74: 0 | J74: 0 | K74: 0 | L74: 0 | M74: 0 | N74: 0 | O74: 24000
C75: 0 | D75: 0 | E75: 0 | F75: 0 | G75: 0 | H75: 0 | I75: 0 | J75: 0 | K75: 0 | L75: 0 | M75: 0 | N75: 0
B76: Loan | C76: 2990 | D76: 2990 | E76: 2990 | F76: 2990 | G76: 2990 | H76: 2990 | I76: 2990 | J76: 2990 | K76: 2990 | L76: 2990 | M76: 2990 | N76: 2990 | O76: 35880
C77: 9043.6333 | D77: 5442.383784 | E77: 4362.708923 | F77: 6901.322038 | G77: 8396.49227 | H77: 9942.65489 | I77: 12115.42321 | J77: 4137.852163 | K77: 12443.14425 | L77: 11089.088 | M77: 11555.14877 | N77: 2898.373981 | O77: 98328.22559
B78: Owner | C78: 6000 | D78: 6000 | E78: 6000 | F78: 6000 | G78: 6000 | H78: 6000 | I78: 6000 | J78: 6000 | K78: 6000 | L78: 0 | M78: 0 | N78: 0 | O78: 54000
C79: 15043.6333 | D79: 26486.01708 | E79: 36848.72601 | F79: 49750.04805 | G79: 64146.54032 | H79: 80089.19521 | I79: 98204.61842 | J79: 108342.4706 | K79: 126785.6148 | L79: 137874.7028 | M79: 149429.8516 | N79: 152328.2256
C80: 4.2 | D80: 4.5 | E80: 3.1 | F80: 1.4 | G80: 1.8 | H80: 2 | I80: 2.7 | J80: 2.9 | K80: 2.9 | L80: 2 | M80: 2 | N80: 4.4 | O80: 2.825
C81: 31 | D81: 28 | E81: 31 | F81: 30 | G81: 31 | H81: 30 | I81: 31 | J81: 31 | K81: 30 | L81: 31 | M81: 30 | N81: 31
B82: 2023 | C82: January | D82: February | E82: March | F82: April | G82: May | H82: June | I82: July | J82: August | K82: September | L82: October | M82: November | N82: December
B83: Av Daily | C83: 22.78283725 | D83: 25.54089316 | E83: 24.76136616 | F83: 23.7787034 | G83: 24.66521492 | H83: 25.06021417 | I83: 24.44103759 | J83: 24.50093863 | K83: 24.45718332 | L83: 23.95479167 | M83: 23.78096579 | N83: 23.74566849 | O83: 24.28915121
B84: Occupancy | C84: 0.7127791563 | D84: 0.8228021978 | E84: 0.8945409429 | F84: 0.791025641 | G84: 0.7648883375 | H84: 0.7782051282 | I84: 0.8250620347 | J84: 0.8591811414 | K84: 0.8147435897 | L84: 0.8337468983 | M84: 0.9557692308 | N84: 0.9094292804 | O84: 0.8301811316
B85: Rooms Sold | C85: 1149 | D85: 1198 | E85: 1442 | F85: 1234 | G85: 1233 | H85: 1214 | I85: 1330 | J85: 1385 | K85: 1271 | L85: 1344 | M85: 1491 | N85: 1466 | O85: 15757
B86: Revenue | C86: 26177.48 | D86: 30597.99 | E86: 35705.89 | F86: 29342.92 | G86: 30412.21 | H86: 30423.1 | I86: 32506.58 | J86: 33933.8 | K86: 31085.08 | L86: 32195.24 | M86: 35457.42 | N86: 34811.15 | O86: 382648.86
B87: Sales Tax | C87: 2303.61824 | D87: 2503.39 | E87: 2885 | F87: 2436.41 | G87: 2434.65 | H87: 2388.79 | I87: 2636.19 | J87: 2986.1744 | K87: 2735.48704 | L87: 2833.18112 | M87: 3120.25296 | N87: 3063.3812 | O87: 32326.52496
B88: Total Collected | C88: 28481.09824 | D88: 33101.38 | E88: 38590.89 | F88: 31779.33 | G88: 32846.86 | H88: 32811.89 | I88: 35142.77 | J88: 36919.9744 | K88: 33820.56704 | L88: 35028.42112 | M88: 38577.67296 | N88: 37874.5312 | O88: 414975.385
B89: Ast Manager | C89: 3120 | D89: 3120 | E89: 3120 | F89: 3120 | G89: 3120 | H89: 3120 | I89: 3293.333333 | J89: 3293.333333 | K89: 3293.333333 | L89: 3293.333333 | M89: 3293.333333 | N89: 3293.333333 | O89: 38480
B90: House Keeping | C90: 500 | D90: 500 | E90: 500 | F90: 500 | G90: 500 | H90: 500 | I90: 500 | J90: 500 | K90: 500 | L90: 500 | M90: 500 | N90: 500 | O90: 6000
B91: Grounds | C91: 1646.666667 | D91: 1646.666667 | E91: 1646.666667 | F91: 1646.666667 | G91: 1646.666667 | H91: 1646.666667 | I91: 1646.666667 | J91: 1646.666667 | K91: 1646.666667 | L91: 1646.666667 | M91: 1646.666667 | N91: 1646.666667 | O91: 19760
B92: Grounds | C92: 823 | D92: 823 | E92: 823 | F92: 823 | G92: 823 | H92: 823 | I92: 823 | J92: 823 | K92: 823 | L92: 823 | M92: 823.3333333 | N92: 823.3333333 | O92: 9876.666667
B93: Payroll | C93: 6089.666667 | D93: 6089.666667 | E93: 6089.666667 | F93: 6089.666667 | G93: 6089.666667 | H93: 6089.666667 | I93: 6263 | J93: 6263 | K93: 6263 | L93: 6263 | M93: 6263.333333 | N93: 6263.333333 | O93: 74116.66667
B94: Insurance Escro | C94: 980 | D94: 980 | E94: 980 | F94: 980 | G94: 980 | H94: 980 | I94: 980 | J94: 980 | K94: 980 | L94: 980 | M94: 980 | N94: 980 | O94: 11760
B95: Property Tax | L95: 5700 | O95: 5700
B96: Utilities | C96: 7740.6 | D96: 7270.5 | E96: 5513.8 | F96: 3818.8 | G96: 4521.2 | H96: 4766 | I96: 5577.8 | J96: 6157 | K96: 6316.5 | L96: 4642 | M96: 4788 | N96: 8660.4 | O96: 69772.6
B97: Electric | C97: 5640.6 | D97: 5170.5 | E97: 3713.8 | F97: 2018.8 | G97: 2221.2 | H97: 2466 | I97: 3277.8 | J97: 3857 | K97: 4016.5 | L97: 2542 | M97: 2688 | N97: 6560.4 | O97: 44172.6
B98: Water | C98: 1600 | D98: 1600 | E98: 1300 | F98: 1300 | G98: 1800 | H98: 1800 | I98: 1800 | J98: 1800 | K98: 1800 | L98: 1600 | M98: 1600 | N98: 1600 | O98: 19600
B99: Garbage | C99: 400 | D99: 400 | E99: 400 | F99: 400 | G99: 400 | H99: 400 | I99: 400 | J99: 400 | K99: 400 | L99: 400 | M99: 400 | N99: 400 | O99: 4800
B100: Bug Zero | C100: 100 | D100: 100 | E100: 100 | F100: 100 | G100: 100 | H100: 100 | I100: 100 | J100: 100 | K100: 100 | L100: 100 | M100: 100 | N100: 100 | O100: 1200
B101: Communication | C101: 1529 | D101: 1529 | E101: 1529 | F101: 1529 | G101: 1529 | H101: 1529 | I101: 1529 | J101: 1529 | K101: 1529 | L101: 1529 | M101: 1529 | N101: 1529 | O101: 18348
B102: Internet | C102: 800 | D102: 800 | E102: 800 | F102: 800 | G102: 800 | H102: 800 | I102: 800 | J102: 800 | K102: 800 | L102: 800 | M102: 800 | N102: 800 | O102: 9600
B103: Cells | C103: 450 | D103: 450 | E103: 450 | F103: 450 | G103: 450 | H103: 450 | I103: 450 | J103: 450 | K103: 450 | L103: 450 | M103: 450 | N103: 450 | O103: 5400
B104: TV | C104: 180 | D104: 180 | E104: 180 | F104: 180 | G104: 180 | H104: 180 | I104: 180 | J104: 180 | K104: 180 | L104: 180 | M104: 180 | N104: 180 | O104: 2160 | CK104: CLKNB.,M
B105: POS | C105: 99 | D105: 99 | E105: 99 | F105: 99 | G105: 99 | H105: 99 | I105: 99 | J105: 99 | K105: 99 | L105: 99 | M105: 99 | N105: 99 | O105: 1188
B106: Supplies | C106: 500 | D106: 500 | E106: 500 | F106: 500 | G106: 500 | H106: 500 | I106: 500 | J106: 500 | K106: 500 | L106: 500 | M106: 500 | N106: 500 | O106: 6000
B107: CC | C107: 484.1786701 | D107: 562.72346 | E107: 656.04513 | F107: 540.24861 | G107: 558.39662 | H107: 557.80213 | I107: 597.42709 | J107: 627.6395648 | K107: 574.9496397 | L107: 595.483159 | M107: 655.8204403 | N107: 643.8670304 | O107: 7054.581544
B108: MISC | C108: 750 | D108: 750 | F108: 3000 | G108: 2000 | H108: 3000 | I108: 2000 | J108: 3200 | L108: 6000 | O108: 20700
B109: Advertising | O109: 0
B110: Repair Rental | O110: 0
B111: Expense | C111: 20377.06358 | D111: 20185.28013 | E111: 18153.5118 | F111: 18894.12528 | G111: 18612.91329 | H111: 19811.2588 | I111: 20083.41709 | J111: 22242.81396 | K111: 18898.93668 | L111: 29042.66428 | M111: 17836.40673 | N111: 21639.98156 | O111: 245778.3732
B112: Revenue | C112: 28481.09824 | D112: 33101.38 | E112: 38590.89 | F112: 31779.33 | G112: 32846.86 | H112: 32811.89 | I112: 35142.77 | J112: 36919.9744 | K112: 33820.56704 | L112: 35028.42112 | M112: 38577.67296 | N112: 37874.5312 | O112: 414975.385
B113: Profit | C113: 8104.034663 | D113: 12916.09987 | E113: 20437.3782 | F113: 12885.20472 | G113: 14233.94671 | H113: 13000.6312 | I113: 15059.35291 | J113: 14677.16044 | K113: 14921.63036 | L113: 5985.756841 | M113: 20741.26623 | N113: 16234.54964 | O113: 169197.0118
B114: Revenue | C114: 8104.034663 | D114: 12916.09987 | E114: 20437.3782 | F114: 12885.20472 | G114: 14233.94671 | H114: 13000.6312 | I114: 15059.35291 | J114: 14677.16044 | K114: 14921.63036 | L114: 5985.756841 | M114: 20741.26623 | N114: 16234.54964 | O114: 169197.0118
B115: Owner Draw | C115: 3466.666667 | D115: 3466.666667 | E115: 3466.666667 | F115: 3466.666667 | G115: 3466.666667 | H115: 3466.666667 | I115: 3466.666667 | J115: 3466.666667 | K115: 3466.666667 | L115: 3466.666667 | M115: 3466.666667 | N115: 3466.666667 | O115: 41600
B116: Loan | C116: 2990 | D116: 2990 | E116: 2990 | F116: 2990 | G116: 2990 | H116: 2990 | I116: 2990 | J116: 2990 | K116: 2990 | L116: 2990 | M116: 2990 | N116: 2990 | O116: 35880
C117: 1647.367997 | D117: 6459.433207 | E117: 13980.71154 | F117: 6428.538057 | G117: 7777.280047 | H117: 6543.964537 | I117: 8602.686243 | J117: 8220.493769 | K117: 8464.963694 | L117: -470.9098257 | M117: 14284.59956 | N117: 9777.88297 | O117: 91717.01179
C118: 4.2 | D118: 5.4 | E118: 3.1 | F118: 1.4 | G118: 1.8 | H118: 2 | I118: 2.7 | J118: 2.9 | K118: 2.9 | L118: 2 | M118: 2 | N118: 4.4 | O118: 2.9
C119: 31 | D119: 29 | E119: 31 | F119: 30 | G119: 31 | H119: 30 | I119: 31 | J119: 31 | K119: 30 | L119: 31 | M119: 30 | N119: 31
B120: 2024 | C120: January | D120: February | E120: March | F120: April | G120: May | H120: June | I120: July | J120: August | K120: September | L120: October | M120: November | N120: December
B121: Av Daily | C121: 25.37937842 | D121: 25.92077419 | E121: 23.18277864 | F121: 21.48885258 | G121: 22.75565032 | H121: 22.38781997 | I121: 26.24129979 | J121: 26.89062319 | K121: 25.8312509 | L121: 25.97542339 | M121: 25.84290188 | N121: 24.86293623 | O121: 24.72997412
B122: Occupancy | C122: 0.9081885856 | D122: 0.8222811671 | E122: 0.8014888337 | F122: 0.8826923077 | G122: 0.8728287841 | H122: 0.9115384615 | I122: 0.8877171216 | J122: 0.8560794045 | K122: 0.8916666667 | L122: 0.9230769231 | M122: 0.9211538462 | N122: 0.9094292804 | O122: 0.8823451152
B123: Rooms Sold | C123: 1464 | D123: 1240 | E123: 1292 | F123: 1377 | G123: 1407 | H123: 1422 | I123: 1431 | J123: 1380 | K123: 1391 | L123: 1488 | M123: 1437 | N123: 1427 | O123: 16756
B124: Revenue | C124: 37155.41 | D124: 32141.76 | E124: 29952.15 | F124: 29590.15 | G124: 32017.2 | H124: 31835.48 | I124: 37551.3 | J124: 37109.06 | K124: 35931.27 | L124: 38651.43 | M124: 37136.25 | N124: 35479.41 | O124: 414550.87
C125: 0 | D125: 0 | E125: 0 | F125: 0 | G125: 0 | H125: 0 | I125: 0 | J125: 0 | K125: 0 | L125: 0 | M125: 0 | N125: 0 | O125: 0
C126: 37155.41 | D126: 32141.76 | E126: 29952.15 | F126: 29590.15 | G126: 32017.2 | H126: 31835.48 | I126: 37551.3 | J126: 37109.06 | K126: 35931.27 | L126: 38651.43 | M126: 37136.25 | N126: 35479.41 | O126: 414550.87
B127: Sales Tax | C127: 3269.67608 | D127: 2828.47488 | E127: 2635.7892 | F127: 2603.9332 | G127: 2817.5136 | H127: 2801.52224 | I127: 3304.5144 | J127: 3265.59728 | K127: 3161.95176 | L127: 3401.32584 | M127: 3267.99 | N127: 3122.18808 | O127: 36480.47656
B128: Total Collected | C128: 40425.08608 | D128: 34970.23488 | E128: 32587.9392 | F128: 32194.0832 | G128: 34834.7136 | H128: 34637.00224 | I128: 40855.8144 | J128: 40374.65728 | K128: 39093.22176 | L128: 42052.75584 | M128: 40404.24 | N128: 38601.59808 | O128: 451031.3466
B129: Ast Manager | C129: 3120 | D129: 3120 | E129: 3120 | F129: 3120 | G129: 3120 | H129: 3120 | I129: 3293.333333 | J129: 3293.333333 | K129: 3293.333333 | L129: 3293.333333 | M129: 3293.333333 | N129: 3293.333333 | O129: 38480
B130: House Keeping | C130: 500 | D130: 500 | E130: 500 | F130: 500 | G130: 500 | H130: 500 | I130: 500 | J130: 500 | K130: 500 | L130: 500 | M130: 500 | N130: 500 | O130: 6000
B131: Grounds | C131: 1646.666667 | D131: 1646.666667 | E131: 1646.666667 | F131: 1646.666667 | G131: 1646.666667 | H131: 1646.666667 | I131: 1646.666667 | J131: 1646.666667 | K131: 1646.666667 | L131: 1646.666667 | M131: 1646.666667 | N131: 1646.666667 | O131: 19760
B132: Grounds | C132: 1646.666667 | D132: 1646.666667 | E132: 1646.666667 | F132: 1646.666667 | G132: 1646.666667 | H132: 1646.666667 | I132: 1646.666667 | J132: 1646.666667 | K132: 1646.666667 | L132: 1646.666667 | M132: 1646.666667 | N132: 1646.666667 | O132: 19760
B133: Payroll | C133: 6913.333333 | D133: 6913.333333 | E133: 6913.333333 | F133: 6913.333333 | G133: 6913.333333 | H133: 6913.333333 | I133: 7086.666667 | J133: 7086.666667 | K133: 7086.666667 | L133: 7086.666667 | M133: 7086.666667 | N133: 7086.666667 | O133: 84000
B134: Insurance Escro | C134: 980 | D134: 980 | E134: 980 | F134: 980 | G134: 980 | H134: 980 | I134: 980 | J134: 980 | K134: 980 | L134: 980 | M134: 980 | N134: 980 | O134: 11760
B135: Property Tax | L135: 5700 | O135: 5700
B136: Utilities | C136: 8257.2 | D136: 10005.6 | E136: 5644 | F136: 3608.8 | G136: 4778.6 | H136: 5114 | I136: 6139.4 | J136: 6449.9 | K136: 6302 | L136: 4882 | M136: 5076 | N136: 8422.8 | O136: 74680.3
B137: Electric | C137: 6157.2 | D137: 7905.6 | E137: 3844 | F137: 1808.8 | G137: 2478.6 | H137: 2814 | I137: 3839.4 | J137: 4149.9 | K137: 4002 | L137: 2782 | M137: 2976 | N137: 6322.8 | O137: 49080.3
B138: Water | C138: 1600 | D138: 1600 | E138: 1300 | F138: 1300 | G138: 1800 | H138: 1800 | I138: 1800 | J138: 1800 | K138: 1800 | L138: 1600 | M138: 1600 | N138: 1600 | O138: 19600
B139: Garbage | C139: 400 | D139: 400 | E139: 400 | F139: 400 | G139: 400 | H139: 400 | I139: 400 | J139: 400 | K139: 400 | L139: 400 | M139: 400 | N139: 400 | O139: 4800
B140: Bug Zero | C140: 100 | D140: 100 | E140: 100 | F140: 100 | G140: 100 | H140: 100 | I140: 100 | J140: 100 | K140: 100 | L140: 100 | M140: 100 | N140: 100 | O140: 1200
B141: Communication | C141: 1529 | D141: 1529 | E141: 1529 | F141: 1529 | G141: 1529 | H141: 1529 | I141: 1529 | J141: 1529 | K141: 1529 | L141: 1529 | M141: 1529 | N141: 1529 | O141: 18348
B142: Internet | C142: 800 | D142: 800 | E142: 800 | F142: 800 | G142: 800 | H142: 800 | I142: 800 | J142: 800 | K142: 800 | L142: 800 | M142: 800 | N142: 800 | O142: 9600
B143: Cells | C143: 450 | D143: 450 | E143: 450 | F143: 450 | G143: 450 | H143: 450 | I143: 450 | J143: 450 | K143: 450 | L143: 450 | M143: 450 | N143: 450 | O143: 5400
B144: TV | C144: 180 | D144: 180 | E144: 180 | F144: 180 | G144: 180 | H144: 180 | I144: 180 | J144: 180 | K144: 180 | L144: 180 | M144: 180 | N144: 180 | O144: 2160 | CK144: CLKNB.,M
B145: POS | C145: 99 | D145: 99 | E145: 99 | F145: 99 | G145: 99 | H145: 99 | I145: 99 | J145: 99 | K145: 99 | L145: 99 | M145: 99 | N145: 99 | O145: 1188
B146: Supplies | C146: 500 | D146: 500 | E146: 500 | F146: 500 | G146: 500 | H146: 500 | I146: 500 | J146: 500 | K146: 500 | L146: 500 | M146: 500 | N146: 500 | O146: 6000
B147: CC | C147: 687.2264634 | D147: 594.493993 | E147: 553.9949664 | F147: 547.2994144 | G147: 592.1901312 | H147: 588.8290381 | I147: 694.5488448 | J147: 686.3691738 | K147: 664.5847699 | L147: 714.8968493 | M147: 686.87208 | N147: 656.2271674 | O147: 7667.532892
B148: MISC | C148: 750 | D148: 750 | F148: 3000 | G148: 2000 | H148: 3000 | I148: 2000 | J148: 3200 | O148: 14700
B149: Advertising | O149: 0
B150: Repair Rental | O150: 0
B151: Expense | C151: 22886.43588 | D151: 24100.90221 | E151: 18756.1175 | F151: 19682.36595 | G151: 20110.63706 | H151: 21426.68461 | I151: 22234.12991 | J151: 23697.53312 | K151: 20224.2032 | L151: 24793.88936 | M151: 19126.52875 | N151: 22296.88191 | O151: 259336.3095
B152: Revenue | C152: 40425.08608 | D152: 34970.23488 | E152: 32587.9392 | F152: 32194.0832 | G152: 34834.7136 | H152: 34637.00224 | I152: 40855.8144 | J152: 40374.65728 | K152: 39093.22176 | L152: 42052.75584 | M152: 40404.24 | N152: 38601.59808 | O152: 451031.3466
B153: Profit | C153: 17538.6502 | D153: 10869.33267 | E153: 13831.8217 | F153: 12511.71725 | G153: 14724.07654 | H153: 13210.31763 | I153: 18621.68449 | J153: 16677.12416 | K153: 18869.01856 | L153: 17258.86648 | M153: 21277.71125 | N153: 16304.71617 | O153: 191695.0371
B154: Contracting | O154: 0
B155: Owner Draw | C155: 5200 | D155: 5200 | E155: 5200 | F155: 5200 | G155: 5200 | H155: 5200 | I155: 5200 | J155: 5200 | K155: 5200 | L155: 5200 | M155: 5200 | N155: 5200 | O155: 62400
B156: Owner Draw | O156: 0
B157: Contractor | C157: 0 | D157: 0 | E157: 0 | F157: 0 | G157: 0 | H157: 0 | I157: 0 | J157: 0 | K157: 0 | L157: 0 | M157: 0 | N157: 0 | O157: 0
B158: Loan | C158: 3500 | D158: =C158 -> 3500 | E158: =D158 -> 3500 | F158: 3500 | G158: 3500 | H158: 3500 | I158: 3500 | J158: 3500 | K158: 3500 | L158: 3500 | M158: 3500 | N158: 3500 | O158: 35880
C159: 9348.650203 | D159: 2679.332674 | E159: 5641.8217 | F159: 4321.717252 | G159: 6534.076535 | H159: 5020.317629 | I159: 10431.68449 | J159: 8487.12416 | K159: 10679.01856 | L159: 9068.866484 | M159: 13087.71125 | N159: 8114.716166 | O159: 93415.03711
CK187: CLKNB.,M
